Cogmind - Beta 14 @@@ ROGUE MODE // 2024.11.18 @ 14:54:51 Player: BEEEEES Result: Destroyed by as-80374 with Assembled Heavy Rifle Performance ------------- Evolutions (0) 0 Regions Visited (2) 400 Robots Destroyed (13) 65 Value Destroyed (176) 176 Prototype IDs (0) 0 Alien Tech Used (0) 0 Bonus (0) 0 TOTAL SCORE: 641 Bonus ------- None Cogmind --------- Core Integrity 0/250 Matter 300/300 Energy 99/100 System Corruption 3% Temperature Cool (0) Movement Core (200) Ox3 Location -10/Mines Parts ------- > --- POWER (1) -------- (None) > --- PROPULSION (2) --- (None) > --- UTILITY (2) ------ Medium Storage Unit > --- WEAPON (2) ------- (None) > --- INVENTORY (10) --- Light Ion Engine Light Ion Engine Light Treads Light Treads Wheel Small Storage Unit Improved Terrain Scanner Mining Laser Mining Laser Peak State ------------ > --- POWER ------------ Light Nuclear Core > --- PROPULSION ------- Light Treads Wheel > --- UTILITY ---------- Medium Storage Unit Seismic Detector > --- WEAPON ----------- Small Laser Light Assault Rifle > --- INVENTORY -------- Light Ion Engine Light Ion Engine Light Treads Compact Wheel Compact Wheel Small Storage Unit Improved Terrain Scanner Assault Rifle Mining Laser Mining Laser [Rating: 10] Favorites ----------- Power Light Ion Engine Engine Light Ion Engine Power Core Light Nuclear Core Propulsion Wheel Treads Light Treads Leg Aluminum Leg Wheel Wheel Utility Seismic Detector Device Seismic Detector Storage Medium Storage Unit Weapon Light Assault Rifle Energy Gun Small Laser Ballistic Gun Light Assault Rifle Build | -11 -10 -10 ------- Run | Yrd Mat Min Slots Evolved . | . . . Power . | . . . Propulsion . | . . . Utility . | . . . Weapon . | . . . Parts Attached 13 | 7 1 5 Power 1 | . . 1 Engine . | . . . Core 1 | . . 1 Reactor . | . . . Propulsion 8 | 5 . 3 Treads 1 | . . 1 Leg . | . . . Wheel 7 | 5 . 2 Hover . | . . . Flight . | . . . Utility 3 | 2 1 . Device 1 | 1 . . Storage 2 | 1 1 . Processor . | . . . Hackware . | . . . Protection . | . . . Artifact . | . . . Weapon 1 | . . 1 Energy Gun . | . . . Energy Cannon . | . . . Ballistic Gun 1 | . . 1 Ballistic Cannon . | . . . Launcher . | . . . Special Weapon . | . . . Impact Weapon . | . . . Slashing Weapon . | . . . Piercing Weapon . | . . . Special Melee Weapon . | . . . Unidentified Prototypes . | . . . Parts Lost 8 | . . 8 Power 1 | . . 1 Propulsion 3 | . . 3 Utility 1 | . . 1 Weapon 3 | . . 3 Highest Loss Streak 7 | . . 7 To Critical Strikes . | . . . Average Slot Usage (%) 96 | . 100 94 Engine 9 | . 14 7 Core 4 | . . 6 Wheel 26 | . 28 26 Device 13 | . 14 13 Storage 14 | . 14 14 Energy Gun 12 | . 14 12 Ballistic Gun 13 | . 14 13 Peak Build Rating 10 | 7 8 10 Average Rating 7 | 6 7 8 On Entrance 7 | 6 7 8 Naked Turns . | . . . Heaviest Build 18 | 11 16 18 Greatest Support 32 | 32 20 32 Greatest Overweight (x) 3 | . . 3 Average Overweight (x) . | . . . Largest Inventory Capacity 10 | 8 10 10 Average Capacity 9 | 8 8 10 Most Carried 10 | 7 10 10 Average Carried 8 | 6 7 9 Final Capacity 10 | 8 10 10 Final Carried 10 | 7 10 9 Class Distribution -------------------- 78% | Mutant 21% | Scavenger-Mutant Dominant Class ---------------- Mutant | -10/Materials Mutant | -10/Mines Resources | -11 -10 -10 ----------- Run | Yrd Mat Min Matter Collected 372 | 297 13 62 Remotely . | . . . Salvage Created 394 | 200 106 88 Parts 27 | 16 8 3 Haulers Intercepted 1 | . 1 . Recyclers Shooed 1 | . 1 . Parts Field Recycled . | . . . Retrieved Matter . | . . . Parts Self-Destructed . | . . . Prevented . | . . . Kills | -11 -10 -10 ------- Run | Yrd Mat Min Combat Hostiles Destroyed 3 | . 1 2 Guns 3 | . 1 2 Classes Destroyed 6 | 3 3 . Worker 2 | 2 . . Tunneler 5 | 5 . . Hauler 1 | . 1 . Recycler 1 | 1 . . Watcher 1 | . 1 . Grunt 3 | . 1 2 Best Kill Streak 4 | 4 2 2 Combat Bots Only 2 | . 1 2 Max Kills in Single Turn 1 | 1 1 1 Gunslinging . | . . . Exploded . | . . . Melee . | . . . Uniques/NPCs Destroyed . | . . . Combat | -11 -10 -10 -------- Run | Yrd Mat Min Hostile Shots Fired 63 | . 3 60 Missed 10 | . . 10 Damage Taken 915 | . 35 880 Core 254 | . . 254 Absorbed by Shields . | . . . Core Remaining (%) 100 | 100 . . Volleys Fired 59 | 27 13 19 Largest 2 | 2 2 2 Hottest 60 | 60 60 60 Shots Fired 117 | 53 26 38 Gun 117 | 53 26 38 Cannon . | . . . Launcher . | . . . Special . | . . . Kinetic 61 | 27 13 21 Thermal 56 | 26 13 17 Explosive . | . . . Electromagnetic . | . . . Robot Hit Streak 16 | 7 16 5 Robot Miss Streak 3 | 3 1 2 Penetration Max . | . . . Secondary Targets . | . . . Shots Hit Robots 80 | 33 21 26 Core Hits 29 | 13 8 8 Critical Kills . | . . . Critical Parts Destroyed . | . . . Critical Strikes . | . . . Melee Attacks . | . . . Impact . | . . . Slashing . | . . . Piercing . | . . . Sneak Attacks . | . . . Combat Hostiles . | . . . Follow-up Attacks . | . . . Damage Inflicted 777 | 311 207 259 Guns 764 | 311 198 255 Cannons . | . . . Explosions . | . . . Melee . | . . . Ramming 13 | . 9 4 Kinetic 333 | 124 87 122 Thermal 431 | 187 111 133 Explosive . | . . . Electromagnetic . | . . . Impact . | . . . Slashing . | . . . Piercing . | . . . Highest Corruption 3 | . . 3 Average Corruption 3 | . . 3 Corruption Purged . | . . . Corruption Blocked . | . . . Overload Shots . | . . . Overflow Damage . | . . . Projectiles . | . . . Explosions . | . . . Melee . | . . . Knockbacks . | . . . Impact . | . . . Kinetic . | . . . Secondary . | . . . Self-Inflicted Damage 6 | . 4 2 Shots . | . . . Rammed 2 | . 1 1 Targets Rammed 2 | . 1 1 Kicked . | . . . Crushed . | . . . Highest Temperature 275 | 40 52 275 Average Temperature 67 | 18 24 131 Received Heat Transfer 293 | . 18 275 Siege Activations . | . . . Robots Corrupted . | . . . Combat Hostiles . | . . . Parts Fried . | . . . Impact Corruptions . | . . . Robots Melted . | . . . Combat Hostiles . | . . . Parts Melted 1 | . . 1 Heat Transferred 975 | 425 250 300 Parts Sabotaged . | . . . Parts Stolen . | . . . Parts Stripped . | . . . Power Chain Reactions . | . . . Alert | -11 -10 -10 ------- Run | Yrd Mat Min Peak Influence 100 | 40 100 84 Initial 39 | . 26 39 Average 45 | 17 51 58 Maximum Alert Level . | . . . Low Security (%) 100 | 100 100 100 Level 1 . | . . . Level 2 . | . . . Level 3 . | . . . Level 4 . | . . . Level 5 . | . . . High Security . | . . . Max Security . | . . . Squads Dispatched 2 | . 2 . Investigation . | . . . Extermination . | . . . Reinforcement 2 | . 2 . Assault . | . . . Garrison . | . . . Intercept . | . . . Searches Triggered . | . . . Construction Impeded . | . . . Haulers Reinforced . | . . . Active Scanning Responses . | . . . Cargo Convoy Interrupts . | . . . Stealth | -11 -10 -10 --------- Run | Yrd Mat Min Distress Signals . | . . . Communications Jammed . | . . . Distress Signals . | . . . Times Spotted 30 | . 6 24 Peak Tracking Total 20 | . 3 20 Tactical Retreats 2 | . . 2 Traps | -11 -10 -10 ------- Run | Yrd Mat Min Traps Triggered . | . . . Indirectly . | . . . Trap Hack Attempts . | . . . Triggered . | . . . Disarmed . | . . . Reprogrammed . | . . . Reused . | . . . Traps Extracted . | . . . Installed . | . . . Triggered . | . . . Machines | -11 -10 -10 ---------- Run | Yrd Mat Min Machines Disabled . | . . . Max in Single Turn . | . . . Machines Repaired . | . . . Machines Dismantled . | . . . Machines Sabotaged . | . . . Overloaded Fab Kills . | . . . Hacking | -11 -10 -10 --------- Run | Yrd Mat Min Machines Accessed . | . . . Terminals . | . . . Fabricators . | . . . Repair Stations . | . . . Recycling Units . | . . . Scanalyzers . | . . . Garrison Access . | . . . Total Hacks . | . . . Successful . | . . . Failed . | . . . Catastrophic . | . . . Database Lockouts . | . . . Manual . | . . . Terminals . | . . . Fabricators . | . . . Repair Stations . | . . . Recycling Units . | . . . Scanalyzers . | . . . Garrison Access . | . . . Terminal Hacks . | . . . Fabricator Hacks . | . . . Repair Station Hacks . | . . . Recycling Unit Hacks . | . . . Scanalyzer . | . . . Garrison Access Hacks . | . . . Unauthorized Hacks . | . . . Terminals . | . . . Fabricators . | . . . Repair Stations . | . . . Recycling Units . | . . . Scanalyzers . | . . . Garrison Access . | . . . Data Cores Recovered . | . . . Used . | . . . Hacking Detections . | . . . Full Trace Events . | . . . Feedback Events . | . . . Feedback Blocked . | . . . Robot Schematics Acquired . | . . . Robots Built . | . . . Authchips . | . . . Time . | . . . Total Robot Build Rating . | . . . Part Schematics Acquired . | . . . Parts Built . | . . . Authchips . | . . . Time . | . . . Total Part Build Rating . | . . . Parts Repaired . | . . . Time . | . . . Parts Recycled . | . . . Recycled Matter . | . . . Retrieved Matter . | . . . Retrieved Components . | . . . Parts Scanalyzed . | . . . Part Schematics Acquired . | . . . Parts Damaged . | . . . Bothacking | -11 -10 -10 ------------ Run | Yrd Mat Min Used RIF Installer . | . . . Robots Hacked . | . . . Non-combat . | . . . Combat . | . . . Robot Hacks Applied . | . . . Relay Couplers Released . | . . . Fabnet Peak Effective % . | . . . Robots Rewired . | . . . Allies Hacked . | . . . Hacks Repelled . | . . . Allies | -11 -10 -10 -------- Run | Yrd Mat Min Total Allies . | . . . Largest Group . | . . . Highest-Rated Group . | . . . Highest-Rated Ally . | . . . Total Orders . | . . . Ally Attacks . | . . . Total Damage . | . . . Kills . | . . . Allies Corrupted . | . . . Allies Melted . | . . . Intel | -11 -10 -10 ------- Run | Yrd Mat Min Robot Analysis Total . | . . . Derelict Logs Recovered . | . . . Drone Launches . | . . . Drone Recoveries . | . . . Exploration | -11 -10 -10 ------------- Run | Yrd Mat Min Turns Passed 719 | 192 176 351 Spaces Moved 519 | 118 143 258 Core 2 | . . 2 Treads 1 | . . 1 Legs 17 | 17 . . Wheels 499 | 101 143 255 Hover . | . . . Flight . | . . . Fastest Speed 80 | 80 80 80 Average Speed 88 | 88 80 94 Slowest Speed 200 | 120 80 200 Overloaded Moves . | . . . Propulsion Burnouts . | . . . Robots Hopped . | . . . Cave-ins Triggered . | . . . Exploration Rate (%) 25 | 5 30 40 Regions Visited 2 Branch Regions 1 Pre-discovered Areas . | . . . Known Exits Taken . | . . . Unknown Exits Taken 2 | 1 1 . Scrap Searched 1 | . . 1 Spaces Dug . | . . . Terrain Destroyed . | . . . Melee . | . . . Projectile . | . . . AOE . | . . . Terrain Rammed . | . . . Walls Destroyed . | . . . Machines Disabled . | . . . Actions | -11 -10 -10 --------- Run | Yrd Mat Min Total 670 | 158 180 332 Wait 70 | . 21 49 Move 517 | 117 142 258 Hop . | . . . Pick Up 3 | 1 2 . Fast Attach 5 | 5 . . Attach 3 | 1 . 2 Detach 2 | 2 . . Swap 5 | 1 1 3 Drop 4 | 4 . . Fire 59 | 27 13 19 Melee . | . . . Ram 2 | . 1 1 Kick . | . . . Crush . | . . . Escape Stasis . | . . . Rewire . | . . . Trap . | . . . Miscellaneous . | . . . Route ------- -11/Scrapyard -10/Materials -10/Mines (discovered 1 exit: [*Exi]) History --------- Turn | Location | Event 24 | -11/Scrapyard | Discovered new exit (range 3) 193 | -11/Scrapyard | Entered Materials 315 | -10/Materials | Build established: Mutant 354 | -10/Materials | Discovered new exit (range 9) 369 | -10/Materials | Entered Mines 385 | -10/Mines | Deemed a non-threat by the Exiles lab entrance 385 | -10/Mines | Discovered new exit (range 5) 680 | -10/Mines | Assembled infested the area 707 | -10/Mines | Core integrity fell below 50% 718 | -10/Mines | Core integrity fell below 20% 720 | -10/Mines | Destroyed by as-80374 with Assembled Heavy Rifle Last Messages --------------- 00656_ Found Med. Laser. 00656_ Found Lgt. Treads. 00656_ Found Med. Laser. 00656_ Found Transport Network Coupler. 00656_ Found 70 Matter. 00658_ 8Y-KSM(g): "Hehe, this'll put a wrench in their mining defense operations..." 00658_ 8Y-KSM(g) slips into the shadows. 00678_ Slammed into R-06 Scavenger. 00678_ Sml. Laser destroyed. 00678_ System corrupted by crushing effect (+3). 00680_ ALERT: Infestation in the mines, dispatching Demolisher response squad. [Achievement: Hunted] 00699_ Assault Rifle destroyed. 00701_ Lgt. Assault Rifle destroyed. 00702_ Critical hit (Burn: +80). 00702_ Lgt. Nuclear Core destroyed. 00704_ Seismic Detector destroyed. 00718_ Com. Wheel destroyed. Map ----- +----------------------------------------------------+ | ???# #????????????????????????????? | | ???# #?????????????????????????????? | | ???# #####?????????????????????????????? | | ??## ##?????????????????????????????????? | | ??# ##?????????????????????????????????? | | ??# #?????????????????????????????????? | | ??# ########??????????????????????????? | | ??# #??????????????????????????? | | ??## ###### #####??????????????????????? | | ???###????# #??????????????????????? | | ??????????# #??????##??????????????? | | ??????????##### #????? #??????????????? | | ??????????????# #????? #??????????????? | | ??????????????# #???? #??????????????? | | ?????##???##### #???# #??????????????? | | ?????#<#### #??# #??????????????? | | ?????# %## ### #?? ##?????????????? | | ?????### %! ### #?# #?????????????? | | ???????###*### ## ##????????????? | | ?????????#### #????????????? | | ???????????# #??????? | | ???????????# ## ??????? | | ???????????## ##?? ??????? | | ????????????# ##??? ## ???????? | | ????????????# #????? ##???????????? | | ????????????# @ #??????##????????????? | | ????????????# ##????????????????????? | | ????????????## a #?????????????????????? | | ?????????????## aa#######???????????????? | | ?????????????## a a #???????????????? | | ????????????## #???????????????? | | ????????????# a#### #???????????????? | | ???????????# #a #???????????????? | | ???????????# ## #???????????????? | | ???????????# ?#a #####???????????????? | | ???????????## #?#a #???????????????????? | | ????????????###??# #???????????????????? | | ???#######???????# #??###???#??????????? | | ??## ##??????# #?# ## ##?????????? | | ??# #??????# ## #?????????? | | ??# #??????# # ??????????? | | ???# #?????## #????????????????? | | ???# #?????# ##????????????????? | | ???# #?????# #????????? ## ?? | | ??## #?????# ##??????? ??? | | ??# #?????## ##?????? ?????? | | ??# #??????# ####### #?????????? | | ??# ##??????# % #??????????? | | ??# ######### ###########??????????? | | ??# #????????????????????? | +----------------------------------------------------+ Best States ------------- Heat Dissipation 25 Energy Generation 14 Energy Capacity 160 Matter Stores 300 Matter Capacity 300 Sight Range 16 Terrain Scan Density 10 Evasion (%) 55 Recoil Reduction 1 Item Schematics ----------------- None Robot Schematics ------------------ None Fabricated ------------ Nothing Alien Tech Used ----------------- None Achievements -------------- Hunted Challenges ------------ None Game ------ Seed BiocellNuclearShredder Manual? 0 Play Time 00:09:57 Cumulative 15.4 hours Start 2024.11.18 @ 14:45:27 End 2024.11.18 @ 14:54:51 Sessions 1 Manual Loads 0 Difficulty Rogue Special Mode None Game No. 33 Rogue 30 Adventurer 3 Explorer 0 Win Type - Total 0 Types 0/0/0/0/0/0/0/0/0 Lore% 4 Gallery% 16 Achievement% 14 Wizard Run 0 Options --------- Layout 1 ASCII 0 Keyboard 0 Movement Arrows Keybinds 0 Fullscreen 2 Font 48/Terminus Map View 50x35 Zoom Use 0% Tactical HUD 1 Map Filters NONE Filters NONE Steam X RUN: 3a89fabe-ff47-4d01-8201-02ec39d18f68